bitfinex-derivatives/quotes_SOLF0:USTF0_20250312
["timestamp","ask_amount","ask_price","bid_price","bid_amount"]
[1741816622408,2.0868,125.7,125.68,7.9578]
[1741816622710,13.86714778,125.71,125.68,7.9578]
[1741816623007,21.82364778,125.71,125.68,7.9578]
[1741816623403,21.82364778,125.71,125.68,8.01315944]
[1741816623706,13.92661367,125.71,125.69,7.9574]
[1741816624001,11.86821367,125.71,125.68,0.05535944]
[1741816624402,19.82481367,125.71,125.68,0.05535944]
[1741816627909,7.957,125.7,125.68,0.05535944]
[1741816628803,11.86821367,125.71,125.68,0.05535944]
[1741816629208,13.85021367,125.71,125.68,0.05535944]
[1741816630315,11.80874778,125.69,125.68,0.05535944]
[1741816630815,11.80874778,125.69,125.63,50.08974778]
[1741816631513,7.9595,125.66,125.63,50.08974778]
[1741816631913,7.9606,125.64,125.63,0.06021457]
[1741816632914,7.9627,125.61,125.59,11.80874778]
[1741816633105,11.80874778,125.63,125.57,11.80874778]
[1741816633306,11.80874778,125.61,125.57,11.80874778]
[1741816633513,7.9637,125.6,125.56,38.2855]
[1741816633818,11.80874778,125.61,125.55,17.92574778]
[1741816634012,7.9639,125.59,125.55,25.89174778]
[1741816634213,0.05381327,125.59,125.57,0.05422418]
[1741816636018,0.05381327,125.59,125.58,7.9644]
[1741816637521,2.1346,125.65,125.62,7.9615]
[1741816638112,48.8153134,125.67,125.6,30.32]
[1741816638316,4.2963,125.68,125.6,30.32]
[1741816638622,0.06055881,125.65,125.63,0.05581458]
[1741816638819,0.06055881,125.65,125.64,7.9603]
[1741816642624,26.4519134,125.71,125.68,7.9579]
[1741816643322,7.9568,125.7,125.67,7.9583]
[1741816643530,18.4953134,125.71,125.67,7.9583]
[1741816643827,0.05666375,125.7,125.68,0.05470952]
[1741816644429,8.01346375,125.7,125.68,0.05470952]
[1741816644628,8.01346375,125.7,125.68,8.01280952]
[1741816645022,0.05666375,125.7,125.68,8.01280952]
[1741816649334,0.05666375,125.7,125.69,7.9575]
[1741816651136,0.05666375,125.7,125.68,0.05470952]
[1741816651327,0.05666375,125.7,125.68,8.01250952]
[1741816653426,0.05666375,125.7,125.68,0.05470952]
[1741816653632,0.05666375,125.7,125.69,7.9575]
[1741816654537,0.05666375,125.7,125.68,0.05470952]
[1741816654735,7.9575,125.69,125.68,0.05470952]
[1741816655837,7.9603,125.65,125.63,30.3]
[1741816656038,7.9603,125.65,125.62,12.1113]
[1741816656939,8.01452113,125.65,125.62,12.16151073]
[1741816658142,8.01452113,125.65,125.62,4.20001073]
[1741816658440,8.01452113,125.65,125.63,7.9612]
[1741816658637,8.01452113,125.65,125.62,4.20001073]
[1741816661542,0.05422113,125.65,125.63,7.9613]
[1741816661737,0.05422113,125.65,125.64,7.9606]
[1741816666449,0.05422113,125.65,125.64,38.2606]
[1741816666650,10.1378,125.7,125.68,7.958]
[1741816666848,7.9571,125.7,125.68,7.958]
[1741816667647,18.47708661,125.73,125.63,18.47708661]
[1741816667853,6.379,125.74,125.7,7.9567]
[1741816668042,0.05949599,125.69,125.68,30.3]
[1741816668241,6.379,125.74,125.71,0.05961659]
[1741816668455,7.9559,125.72,125.69,7.957]
[1741816668652,7.9559,125.72,125.71,0.052378]
[1741816678260,19.77157014,125.72,125.71,0.052378]
[1741816691067,11.81567014,125.72,125.71,0.052378]
[1741816691274,11.867433,125.74,125.72,7.9553]
[1741816691870,11.867433,125.74,125.71,0.052378]
[1741816692069,0.05176286,125.74,125.71,0.052378]
[1741816692266,0.05176286,125.74,125.71,30.312378]
[1741816692974,0.05176286,125.74,125.72,11.81567014]
[1741816693574,7.9524,125.77,125.74,7.9543]
[1741816694370,7.9524,125.77,125.73,7.9549]
[1741816694570,7.9544,125.74,125.69,30.26]
[1741816694770,7.9544,125.74,125.69,42.07567014]
[1741816694967,0.0230365,125.73,125.7,0.05868356]
[1741816695274,0.0230365,125.73,125.7,8.01518356]
[1741816696573,7.9783365,125.73,125.7,0.05868356]
[1741816696878,0.0230365,125.73,125.7,0.05868356]
[1741816697778,7.9556,125.72,125.7,0.05868356]
[1741816700377,0.0230365,125.73,125.7,0.05868356]
[1741816700586,7.9562,125.71,125.7,0.05868356]
[1741816700978,0.0230365,125.73,125.7,0.05868356]
[1741816701181,7.9559,125.72,125.7,0.05868356]
[1741816703884,0.0230365,125.73,125.7,0.05868356]
[1741816704082,7.9562,125.71,125.7,0.05868356]
[1741816704281,0.0230365,125.73,125.7,0.05868356]
[1741816704787,7.9559,125.72,125.7,0.05868356]
[1741816705284,7.9559,125.72,125.7,8.01528356]
[1741816715483,7.9784365,125.73,125.7,8.01528356]
[1741816717395,7.9556,125.72,125.7,8.01528356]
[1741816717894,0.0230365,125.73,125.7,0.05868356]
[1741816718099,7.956,125.72,125.7,0.05868356]
[1741816719891,0.0230365,125.73,125.7,0.05868356]
[1741816720091,7.9781365,125.73,125.7,0.05868356]
[1741816720286,0.0230365,125.73,125.7,0.05868356]
[1741816721396,7.9559,125.72,125.7,0.05868356]
[1741816724398,0.0230365,125.73,125.7,0.05868356]
[1741816724697,11.81567014,125.72,125.7,0.05868356]
[1741816725603,7.9562,125.71,125.7,0.05868356]
[1741816729203,42.03567014,125.72,125.64,44.18067014]
[1741816729497,11.81567014,125.69,125.64,11.81567014]
[1741816729901,11.81567014,125.67,125.61,17.31181692]
[1741816730093,11.81567014,125.67,125.62,49.99727014]
[1741816730302,7.961,125.64,125.63,0.05934628]
[1741816730502,11.81567014,125.65,125.61,11.02481692]
[1741816730805,11.81567014,125.63,125.62,0.05489131]
[1741816731800,11.81567014,125.63,125.61,44.19634289]
[1741816732800,7.9619,125.62,125.61,34.03024314]
[1741816733000,19.77757014,125.62,125.61,34.08190894]
[1741816734898,19.77757014,125.62,125.61,0.0516658]
[1741816735498,11.81567014,125.62,125.61,0.0516658]
[1741816736909,11.86859042,125.65,125.61,0.0516658]
[1741816737511,19.82889042,125.65,125.61,8.0137658]
[1741816737904,8.01322028,125.65,125.61,0.0516658]
[1741816738104,11.86859042,125.65,125.62,7.9615]
[1741816738302,11.86859042,125.65,125.61,0.0516658]
[1741816738812,11.86859042,125.65,125.62,7.9615]
[1741816739508,0.05292028,125.65,125.61,30.2916658]
[1741816740210,0.05292028,125.65,125.62,7.9616]
[1741816742009,0.05292028,125.65,125.62,7.9618]
[1741816742213,11.81567014,125.63,125.61,0.0516658]
[1741816742410,7.9619,125.62,125.61,0.0516658]
[1741816745820,0.05292028,125.65,125.61,0.0516658]
[1741816746021,11.86859042,125.65,125.61,0.0516658]
[1741816746414,11.86859042,125.65,125.62,7.9614]
[1741816746617,0.05292028,125.65,125.62,7.9614]
[1741816746817,0.05292028,125.65,125.64,11.81567014]
[1741816747012,0.05292028,125.65,125.64,19.77627014]
[1741816747220,11.81567014,125.71,125.64,11.81567014]
[1741816747519,11.81567014,125.71,125.66,11.81567014]
[1741816747713,11.81567014,125.71,125.67,30.24]
[1741816748118,19.77227014,125.71,125.67,38.1981]
[1741816748322,0.05925894,125.7,125.68,0.05933379]
[1741816748822,0.05925894,125.7,125.68,8.01743379]
[1741816749726,0.05925894,125.7,125.69,7.9575]
[1741816750315,55.66166985,125.77,125.73,7.9549]
[1741816750719,11.81567014,125.77,125.73,7.9549]
[1741816751226,11.81567014,125.77,125.72,7.9553]
[1741816751415,11.81567014,125.75,125.74,0.05911018]
[1741816753622,19.76937014,125.75,125.74,0.05911018]
[1741816753826,11.81567014,125.75,125.68,4.3326]
[1741816754021,11.81567014,125.72,125.66,42.03567014]
[1741816754427,7.9572,125.7,125.66,42.03567014]
[1741816754627,11.81567014,125.7,125.64,11.81567014]
[1741816755021,8.01967626,125.68,125.66,0.06087159]
[1741816755522,0.06117626,125.68,125.66,0.06087159]
[1741816755722,8.01957626,125.68,125.66,0.06087159]
[1741816756830,0.06117626,125.68,125.66,0.06087159]
[1741816758029,0.06117626,125.68,125.66,30.28087159]
[1741816758418,0.06117626,125.68,125.66,38.24007159]
[1741816758828,0.06117626,125.68,125.66,30.28087159]
[1741816759025,48.69185553,125.74,125.66,30.28087159]
[1741816759221,48.69185553,125.74,125.66,30.22]
[1741816759627,7.9566,125.71,125.67,7.9583]
[1741816760334,0.02236607,125.7,125.68,0.05104797]
[1741816760930,0.02236607,125.7,125.68,8.00914797]
[1741816763937,0.02236607,125.7,125.69,7.9575]
[1741816764136,257.23185553,125.76,125.69,30.22]
[1741816764336,18.47185553,125.76,125.69,30.22]
[1741816764536,7.954,125.75,125.69,30.22]
[1741816764737,18.47185553,125.78,125.69,48.69185553]
[1741816764738,48.69185553,125.78,125.69,48.69185553]
[1741816765238,7.954,125.75,125.72,8.01497071]
[1741816765840,48.69185553,125.78,125.72,0.05977071]
[1741816766041,7.9533,125.76,125.72,30.25977071]
[1741816766541,7.9538,125.75,125.72,38.21497071]
[1741816768447,7.9533,125.76,125.72,30.25977071]
[1741816768646,186.35054771,125.8,125.72,30.25977071]
[1741816768647,203.32650324,125.8,125.72,30.25977071]
[1741816768851,203.32650324,125.8,125.72,30.2]
[1741816769153,7.9515,125.79,125.75,8.00387168]
[1741816769357,7.9515,125.79,125.75,0.05057168]
[1741816769548,192.80544771,125.8,125.77,7.9522]
[1741816769853,184.85464771,125.8,125.75,30.25057168]
[1741816770250,18.47185553,125.84,125.75,48.72242721]
[1741816770450,30.2,125.85,125.75,48.67185553]
[1741816770652,7.9493,125.82,125.79,7.9508]
[1741816770851,30.2,125.85,125.79,30.2]
[1741816771046,22.60975553,125.86,125.79,30.25550792]
[1741816771047,50.72955553,125.86,125.79,30.25550792]
[1741816771452,50.72955553,125.86,125.79,38.20640792]
[1741816771753,18.47185553,125.84,125.79,30.25550792]
[1741816771954,18.47185553,125.84,125.79,0.05550792]
[1741816772146,18.47185553,125.82,125.79,0.05550792]
[1741816772346,48.67185553,125.82,125.79,0.05550792]
[1741816773051,18.47185553,125.8,125.79,7.92e-06]
[1741816773354,26.41185553,125.8,125.71,220.2]
[1741816773557,18.47185553,125.78,125.71,30.2]
[1741816773746,48.67185553,125.78,125.71,30.2]
[1741816773951,18.47185553,125.76,125.69,30.2]
[1741816774353,8.01020792,125.74,125.71,0.05840449]
[1741816775055,0.05550792,125.74,125.71,0.05840449]
[1741816775354,7.955,125.73,125.71,0.05840449]
[1741816776355,0.05550792,125.74,125.71,0.05840449]
[1741816777353,18.47185553,125.72,125.71,4.49e-06]
[1741816777559,26.42745553,125.72,125.71,4.49e-06]
[1741816781165,7.9556,125.72,125.71,4.49e-06]
[1741816783168,0.05550792,125.74,125.71,4.49e-06]
[1741816783961,0.05550792,125.74,125.73,7.9549]
[1741816785571,48.67185553,125.79,125.75,7.9533]
[1741816785969,18.47185553,125.79,125.75,7.9533]
[1741816786271,7.9522,125.78,125.75,7.9533]
[1741816786472,8.0044108,125.78,125.76,0.05829352]
[1741816788072,0.0522108,125.78,125.76,0.05829352]
[1741816789977,0.0522108,125.78,125.76,30.23829352]
[1741816790173,0.0522108,125.78,125.77,7.9524]
[1741816790372,50.87095553,125.83,125.76,30.23829352]
[1741816790574,48.67185553,125.83,125.76,30.23829352]
[1741816790764,30.18,125.84,125.79,7.9508]
[1741816790970,7.9493,125.82,125.79,7.9508]
[1741816791269,257.15185553,125.85,125.8,7.9501]
[1741816791468,7.9484,125.84,125.79,30.23098357]
[1741816791664,43.84599971,125.87,125.79,30.23098357]
[1741816791872,43.84599971,125.87,125.83,7.9483]
[1741816792167,43.84599971,125.87,125.82,0.05478217]
[1741816792574,48.65185553,125.89,125.82,0.05478217]
[1741816792973,30.18,125.88,125.82,0.05478217]
[1741816793778,7.9477,125.85,125.82,0.05478217]
[1741816794166,30.18,125.88,125.82,0.05478217]
[1741816794379,7.9473,125.86,125.82,0.05478217]
[1741816794977,30.18,125.88,125.82,0.05478217]
[1741816795574,7.948,125.84,125.82,0.05478217]
[1741816796771,18.47185553,125.87,125.82,0.05478217]
[1741816796978,7.9486,125.83,125.82,0.05478217]
[1741816800483,30.18,125.88,125.82,0.05478217]
[1741816800676,30.18,125.88,125.82,8.00348217]
[1741816800877,7.9469,125.86,125.82,30.21478217]
[1741816801077,30.18,125.88,125.82,30.21478217]
[1741816801281,48.65185553,125.88,125.82,30.21478217]
[1741816801577,7.9486,125.83,125.82,0.05478217]
[1741816802578,240.02317534,125.91,125.82,0.05478217]
[1741816802783,18.47185553,125.89,125.81,30.16]
[1741816802978,18.47185553,125.89,125.85,0.05203495]
[1741816803984,7.9457,125.88,125.85,0.05203495]
[1741816804190,262.78085553,125.91,125.85,0.05203495]
[1741816804588,18.47185553,125.89,125.85,0.05203495]
[1741816804986,48.63185553,125.89,125.85,0.05203495]
[1741816805891,18.47185553,125.89,125.85,0.05203495]
[1741816806792,292.94085553,125.91,125.85,0.05203495]
[1741816807290,7.9466,125.87,125.85,0.05203495]
[1741816807786,7.9458,125.88,125.85,0.05203495]
[1741816807990,292.94085553,125.91,125.85,0.05203495]
[1741816808189,7.9464,125.87,125.85,0.05203495]
[1741816808491,292.94085553,125.91,125.85,0.05203495]
[1741816809091,257.11185553,125.91,125.85,0.05203495]
[1741816809290,18.47185553,125.91,125.85,30.21203495]
[1741816810087,7.9445,125.9,125.87,7.9457]
[1741816810493,7.9445,125.9,125.87,7.99830957]
[1741816810889,18.47185553,125.93,125.89,7.9447]
[1741816811189,88.41423406,126.02,125.9,18.47185553]
[1741816811190,1.3825434,125.99,125.9,18.47185553]
[1741816811389,43.84599971,126.01,125.92,18.47185553]
[1741816811596,43.84599971,126.01,125.93,32.2129]
[1741816811791,43.84599971,126.01,125.95,0.05318546]
[1741816811991,43.84599971,126.01,125.95,7.99378546]
[1741816812194,43.84599971,126.01,125.96,30.16]
[1741816812494,43.84599971,126.01,125.96,48.63185553]
[1741816812685,43.84599971,126.01,125.97,2.082]
[1741816813086,43.84599971,126.01,125.98,0.05712667]
[1741816813292,43.84599971,126.01,125.99,30.16]
[1741816813486,18.47185553,126.06,125.99,30.16]
[1741816813886,18.47185553,126.06,126.01,0.05900906]
[1741816814297,26.40645553,126.06,126.01,0.05900906]
[1741816814495,18.47185553,126.06,126.01,0.05900906]
[1741816814703,26.40845553,126.02,126.01,0.05900906]
[1741816815495,18.47185553,126.02,125.94,42.2774]
[1741816815799,48.61185553,126.02,125.94,34.3357]
[1741816815998,48.61185553,126.02,125.94,4.1957]
[1741816816200,29.42149508,126.0,125.93,2.0529]
[1741816816394,30.14,125.99,125.9,30.14]
[1741816816596,7.9419,125.94,125.9,30.14]
[1741816816793,7.9419,125.94,125.89,6.2899]
[1741816816794,30.14,125.96,125.93,0.06072503]
[1741816816992,30.14,125.96,125.82,219.42149508]
[1741816816993,0.05736451,125.93,125.86,38.0862]
[1741816817198,7.9433,125.92,125.86,30.12]
[1741816817390,30.14,125.96,125.86,30.12]
[1741816817589,7.9434,125.92,125.86,38.0666]
[1741816817800,1.34,125.95,125.86,38.0666]
[1741816817995,29.42149508,125.94,125.86,30.12]
[1741816818196,0.06006255,125.92,125.89,0.05249652]
[1741816818398,7.9443,125.9,125.89,0.05249652]
[1741816818595,29.48155763,125.92,125.83,80.46836975]
[1741816818797,29.42149508,125.92,125.83,88.41686975]
[1741816818992,41.33149508,125.92,125.83,88.41686975]
[1741816819196,50.69149508,125.92,125.83,88.41686975]
[1741816819398,50.69149508,125.92,125.83,44.2561]
[1741816819598,2.7781,125.92,125.83,255.72909508]
[1741816819801,15.15,125.99,125.9,29.42149508]
[1741816820000,15.15,125.99,125.93,29.42149508]
[1741816820196,15.15,125.99,125.96,7.94]
[1741816820399,15.15,125.99,125.97,30.14]
[1741816821201,15.20052326,125.99,125.97,30.19717814]
[1741816821403,15.20052326,125.99,125.97,38.13687814]
[1741816821601,0.05052326,125.99,125.97,38.13687814]
[1741816822094,0.05052326,125.99,125.97,30.19717814]
[1741816822694,0.05052326,125.99,125.97,38.13647814]
[1741816823609,0.05052326,125.99,125.97,30.19717814]
[1741816823906,0.05052326,125.99,125.98,7.9391]
[1741816824201,0.05052326,125.99,125.97,0.05717814]
[1741816825104,0.05052326,125.99,125.97,7.99697814]
[1741816827109,0.05052326,125.99,125.98,7.9391]
[1741816827808,0.05052326,125.99,125.97,0.05717814]
[1741816828008,30.17052326,125.99,125.97,0.00658701]
[1741816828803,7.9391,125.98,125.97,0.00658701]
[1741816831204,45.30059508,125.98,125.97,0.00658701]
[1741816831508,47.43499508,125.98,125.97,0.00658701]
[1741816831708,39.49499508,125.98,125.97,0.00658701]
[1741816832306,47.43499508,125.98,125.97,0.00658701]
[1741816832513,39.49499508,125.98,125.97,0.00658701]
[1741816832713,41.65279508,125.98,125.97,0.00658701]
[1741816833011,49.59279508,125.98,125.97,0.00658701]
[1741816833214,41.65279508,125.98,125.97,0.00658701]
[1741816833608,49.59279508,125.98,125.97,0.00658701]
[1741816834005,41.65279508,125.98,125.97,0.00658701]
[1741816834410,49.59279508,125.98,125.97,0.00658701]
[1741816834607,7.9438,125.91,125.86,2.0621]
[1741816834915,30.12,125.93,125.85,4.0906]
[1741816835116,30.12,125.92,125.86,7.9464]
[1741816835414,30.12,125.92,125.85,4.0906]
[1741816835914,0.05771289,125.9,125.87,0.05364908]
[1741816837810,7.9455,125.88,125.87,0.05364908]
[1741816839805,7.9455,125.88,125.87,4.908e-05]
[1741816842015,37.36699508,125.88,125.87,4.908e-05]
[1741816844023,29.42149508,125.88,125.79,34.3503]
[1741816844521,7.949,125.83,125.79,34.3503]
[1741816845111,0.05800399,125.82,125.8,8.01178474]
[1741816845311,8.00760399,125.82,125.8,0.06128474]
[1741816845514,0.05800399,125.82,125.8,0.06128474]
[1741816845917,7.9499,125.81,125.8,0.06128474]
[1741816846117,30.19800399,125.82,125.8,0.06128474]
[1741816846414,7.9499,125.81,125.8,0.06128474]
[1741816850028,7.9499,125.81,125.8,8.474e-05]
[1741816850424,29.42149508,125.81,125.73,14.2388]
[1741816850623,7.9531,125.76,125.73,14.2388]
[1741816850823,30.14,125.78,125.73,4.1724]
[1741816851024,30.14,125.78,125.73,2.1376]
[1741816851220,30.14,125.78,125.69,4.0257]
[1741816851423,30.14,125.78,125.69,36.231]
[1741816851626,0.0563619,125.75,125.72,0.06076022]
[1741816851828,8.0105619,125.75,125.72,0.06076022]
[1741816852032,0.0563619,125.75,125.72,0.06076022]
[1741816852329,7.9546,125.74,125.72,0.06076022]
[1741816853534,0.0563619,125.75,125.72,0.06076022]
[1741816853929,0.0563619,125.75,125.73,7.9545]
[1741816855329,0.0563619,125.75,125.72,0.06076022]
[1741816855530,0.0563619,125.75,125.74,7.9543]
[1741816855730,267.88149508,125.83,125.72,30.22076022]
[1741816855926,30.16,125.82,125.72,30.16]
[1741816856132,7.9516,125.79,125.75,7.9531]
[1741816856334,7.9516,125.79,125.72,30.16]
[1741816856728,38.1108,125.8,125.72,30.16]
[1741816856930,0.05349899,125.77,125.74,0.05612099]
[1741816858437,0.05349899,125.77,125.76,7.953]
[1741816860339,0.05349899,125.77,125.75,2.0113]
[1741816860959,0.05349899,125.77,125.76,7.953]
[1741816861773,14.87,125.82,125.76,7.96]
[1741816861975,22.8192,125.82,125.76,2.117]
[1741816862165,14.87,125.82,125.8,7.9505]
[1741816862456,14.87,125.82,125.78,30.16]
[1741816862701,30.16,125.85,125.78,30.16]
[1741816862855,0.05870687,125.81,125.8,7.9501]
[1741816863053,30.16,125.85,125.79,0.05380894]
[1741816863358,0.05725604,125.82,125.79,0.05380894]
[1741816863979,6.3758,125.89,125.79,0.05380894]
[1741816864153,6.3758,125.89,125.78,59.58149508]
[1741816864154,30.16,125.88,125.78,59.58149508]
[1741816864538,7.947,125.86,125.82,7.9489]
[1741816865240,0.05310657,125.85,125.83,0.05595649]
[1741816865445,7.948,125.84,125.83,0.05595649]
[1741816865645,0.05310657,125.85,125.83,0.05595649]
[1741816865938,8.00070657,125.85,125.83,0.05595649]
[1741816866446,0.05310657,125.85,125.83,0.05595649]
[1741816870251,0.05310657,125.85,125.84,7.948]
[1741816870555,27.9951,125.89,125.84,30.14]
[1741816870752,20.05,125.89,125.85,7.947]
[1741816870952,20.05,125.89,125.84,30.14]
[1741816871452,7.9472,125.86,125.84,30.14]
[1741816871642,7.9472,125.86,125.85,0.05296362]
[1741816873753,0.06002496,125.88,125.85,0.05296362]
[1741816874251,0.06002496,125.88,125.85,7.99986362]
[1741816874453,0.06002496,125.88,125.85,0.05296362]
[1741816874949,20.05,125.89,125.85,30.19296362]
[1741816875361,20.05,125.89,125.88,7.9455]
[1741816875757,7.9445,125.9,125.88,7.9455]
[1741816876157,15.96,125.91,125.88,7.99576717]
[1741816876359,23.9039,125.91,125.88,7.99576717]
[1741816876660,23.9039,125.91,125.88,30.19026717]
[1741816876661,15.96,125.91,125.88,30.19026717]
[1741816877055,12.6576,125.91,125.88,30.19026717]
[1741816877255,11.08306319,125.97,125.88,30.19026717]
[1741816877458,11.08306319,125.97,125.9,29.42149508]
[1741816877662,11.08306319,125.97,125.94,7.9413]
[1741816877862,121.17717058,125.98,125.94,38.0813]
[1741816877863,7.9396,125.98,125.94,38.0813]
[1741816878063,73.98599971,126.01,125.94,38.13195624]
[1741816878361,13.0,126.0,125.94,38.13195624]
[1741816878559,7.9398,125.97,125.94,30.19065624]
[1741816878866,18.38417725,125.99,125.94,0.05065624]
[1741816879057,18.38417725,125.97,125.94,0.05065624]
[1741816879253,7.941,125.95,125.94,0.05065624]
[1741816879959,56.44517725,125.95,125.94,5.624e-05]
[1741816880263,7.9435,125.92,125.88,2.0261]
[1741816881268,0.05683229,125.91,125.89,0.05696842]
[1741816881562,30.12,125.97,125.9,30.12]
[1741816881762,30.12,125.97,125.92,7.9428]
[1741816881962,30.12,125.99,125.92,7.9428]
[1741816882162,44.57040582,126.0,125.9,30.12]
[1741816882362,74.69040582,126.0,125.91,2.132]
[1741816882563,44.57040582,126.0,125.91,2.132]
[1741816882762,13.0,126.0,125.94,0.06027963]
[1741816883064,13.0,126.0,125.95,30.12]
[1741816883266,13.0,126.0,125.98,7.939]
[1741816883657,13.0,126.0,125.99,30.12]
[1741816883856,15.73,126.04,126.0,7.9378]
[1741816883857,23.6657,126.04,126.0,7.9378]
[1741816884067,11.08306319,126.07,125.99,30.12]
[1741816884362,11.08306319,126.07,126.01,0.05362246]
[1741816885666,59.56780582,126.06,126.01,0.05362246]
[1741816885873,63.65790582,126.06,126.01,0.05362246]
[1741816886066,7.9364,126.03,126.01,0.05362246]
[1741816886267,63.65790582,126.06,126.01,0.05362246]
[1741816886669,7.9349,126.05,126.01,0.05362246]
[1741816887172,7.9343,126.06,126.01,0.05362246]
[1741816887881,248.3889,126.07,126.01,30.17362246]
[1741816888085,238.26,126.07,126.01,30.17362246]
[1741816888779,7.9345,126.06,126.01,30.17362246]
[1741816890090,238.26,126.07,126.01,30.17362246]
[1741816890793,30.1,126.06,126.01,0.05362246]
[1741816891282,29.44780582,126.05,126.01,0.05362246]
[1741816891482,30.1,126.04,126.01,0.05362246]
[1741816891790,32.2486,126.04,126.01,0.05362246]
[1741816893482,2.0296,126.05,126.01,0.05362246]
[1741816893687,238.26,126.07,126.01,0.05362246]
[1741816893990,238.26,126.07,126.01,7.99062246]
[1741816894688,246.1941,126.07,126.02,7.9365]
[1741816894883,238.26,126.07,126.02,7.9365]
[1741816895482,238.26,126.07,126.01,0.05362246]
[1741816895887,7.9349,126.05,126.01,7.99062246]
[1741816896085,267.70780582,126.07,126.01,0.05362246]
[1741816896279,29.44780582,126.05,126.01,0.05362246]
[1741816896486,59.54780582,126.05,126.01,0.05362246]
[1741816897294,29.44780582,126.03,125.97,30.1]
[1741816897491,29.44780582,126.03,125.95,34.4277]
[1741816897795,7.938,126.0,125.96,7.94]
[1741816897993,59.54780582,126.05,125.95,34.4277]
[1741816898192,7.9364,126.03,125.99,7.9384]
[1741816898488,0.05100345,126.02,126.0,0.05255055]
[1741816899594,7.9373,126.01,126.0,0.05255055]
[1741816900091,0.05100345,126.02,125.94,7.9415]
[1741816900298,7.94,125.97,125.94,30.1]
[1741816900496,59.54780582,126.01,125.94,30.1]
[1741816900686,7.9408,125.96,125.91,4.2157]
[1741816900886,59.54780582,126.01,125.91,32.2564]
[1741816901085,59.54780582,126.01,125.91,40.1994]
[1741816901387,7.9408,125.96,125.95,0.05512434]
[1741816902297,7.9419,125.94,125.9,30.12]
[1741816902699,31.58860582,125.97,125.88,2.0834]
[1741816902994,31.58860582,125.97,125.89,30.1]
[1741816903195,2.1408,125.97,125.89,30.1]
[1741816903403,0.0506736,125.94,125.92,0.05436399]
[1741816904489,0.0506736,125.94,125.93,7.9423]
[1741816904993,0.0506736,125.94,125.92,30.23436399]
[1741816905792,0.0506736,125.94,125.93,7.9423]
[1741816906197,7.938,126.0,125.95,7.9406]
[1741816906493,7.938,126.0,125.95,38.1606]
[1741816906692,2.0374,126.01,125.93,30.24]
[1741816907396,0.0599124,125.98,125.96,0.057929]
[1741816908099,30.3399124,125.98,125.9,30.28]
[1741816908302,30.28,125.98,125.9,30.28]
[1741816908496,7.9408,125.96,125.92,7.9425]
[1741816908901,7.9415,125.95,125.91,7.9432]
[1741816909097,30.28,125.98,125.9,30.28]
[1741816909297,0.05090988,125.94,125.92,0.05882045]
[1741816909501,7.99290988,125.94,125.92,0.05882045]
[1741816909703,0.05090988,125.94,125.92,0.05882045]
[1741816910498,4.1248,126.01,125.93,30.36]
[1741816910902,34.4848,126.01,125.93,30.36]
[1741816911600,29.44780582,126.0,125.91,32.5687]
[1741816911805,7.9398,125.97,125.96,0.0537203]
[1741816912005,30.47577188,125.98,125.91,30.4]
[1741816912207,30.42,125.98,125.89,30.42]
[1741816913098,7.942,125.94,125.92,0.05493434]
[1741816914001,0.05198742,125.95,125.92,7.99753434]
[1741816914506,0.05198742,125.95,125.92,30.49493434]
[1741816914707,0.05198742,125.95,125.94,7.9417]
[1741816915204,13.78,126.0,125.96,7.9401]
[1741816915594,13.78,126.0,125.95,30.44]
[1741816915794,7.9389,125.99,125.95,30.44]
[1741816915994,7.9389,125.99,125.95,38.3804]
[1741816916397,0.053647,125.98,125.96,0.05565219]
[1741816916904,7.992847,125.98,125.96,0.05565219]
[1741816917106,0.053647,125.98,125.96,0.05565219]
[1741816917306,13.78,126.0,125.96,0.05565219]
[1741816917509,13.78,126.0,125.96,2.08515219]
[1741816917811,13.78,126.0,125.97,29.44780582]
[1741816918003,13.78,126.0,125.98,30.36]
[1741816918208,16.48,126.03,125.99,7.9385]
[1741816918709,0.0590616,126.02,126.0,0.0567781]
[1741816921414,40.9086,126.07,126.01,30.28]
[1741816922338,38.72,126.07,126.01,59.72780582]
[1741816922530,38.72,126.07,126.03,29.4985969]
[1741816922727,88.41423406,126.14,126.06,29.44780582]
[1741816922927,88.41423406,126.14,126.12,7.9303]
[1741816923226,88.41423406,126.14,126.12,38.6303]